bitfinex-derivatives/quotes_BTCF0:USTF0_20230702
["timestamp","ask_amount","ask_price","bid_price","bid_amount"]
[1688283310005,0.536254,30529.0,30528.0,0.87707697]
[1688283310707,0.536254,30529.0,30528.0,0.83999783]
[1688283310902,0.536254,30529.0,30528.0,0.85822752]
[1688283311801,0.536254,30529.0,30528.0,0.87707697]
[1688283314025,0.536254,30529.0,30528.0,0.15547697]
[1688283314199,0.536254,30529.0,30528.0,0.87707697]
[1688283315207,0.536254,30529.0,30528.0,0.15547697]
[1688283315412,0.536254,30529.0,30528.0,0.87707697]
[1688283317414,0.536254,30529.0,30528.0,0.85884728]
[1688283317603,0.536254,30529.0,30528.0,0.77882443]
[1688283319713,0.536254,30529.0,30528.0,0.74174529]
[1688283320105,0.536254,30529.0,30528.0,0.75997498]
[1688283321115,0.536254,30529.0,30528.0,0.76271252]
[1688283321707,0.536254,30529.0,30528.0,0.74448283]
[1688283321913,0.536254,30529.0,30528.0,0.76271252]
[1688283322714,0.53538464,30529.0,30528.0,0.76271252]
[1688283323311,0.53538464,30529.0,30528.0,0.78156197]
[1688283324218,0.53538464,30529.0,30528.0,0.87981451]
[1688283324816,0.53538464,30529.0,30528.0,0.15821451]
[1688283325022,0.53538464,30529.0,30528.0,0.87981451]
[1688283329121,0.53538464,30529.0,30528.0,0.15821451]
[1688283329324,0.53538464,30529.0,30528.0,0.87981451]
[1688283331022,0.53538464,30529.0,30528.0,0.8805076]
[1688283333025,0.53538464,30529.0,30528.0,0.1589076]
[1688283333324,0.53538464,30529.0,30528.0,0.8805076]
[1688283333822,1.11518464,30529.0,30524.0,0.12405299]
[1688283334027,0.211,30525.0,30524.0,0.09825254]
[1688283334324,0.24888569,30525.0,30524.0,0.09825254]
[1688283334924,0.57948569,30525.0,30524.0,0.09825254]
[1688283335522,0.57948569,30525.0,30524.0,0.06549426]
[1688283337329,0.57948569,30525.0,30523.0,0.06549426]
[1688283337531,0.212,30524.0,30523.0,0.06549426]
[1688283337831,0.24988669,30524.0,30523.0,0.06549426]
[1688283339125,0.231657,30524.0,30523.0,0.06549426]
[1688283339935,0.24988669,30524.0,30523.0,0.06549426]
[1688283341231,0.24988669,30524.0,30523.0,0.07872156]
[1688283345041,0.231657,30524.0,30523.0,0.07872156]
[1688283345340,0.23022969,30524.0,30523.0,0.07872156]
[1688283346626,0.23022969,30524.0,30523.0,0.0132273]
[1688283346824,0.23022969,30524.0,30523.0,0.07872156]
[1688283347432,0.212,30524.0,30523.0,0.0132273]
[1688283347832,0.23022969,30524.0,30523.0,0.0132273]
[1688283350840,0.212,30524.0,30523.0,0.0132273]
[1688283351146,0.212,30524.0,30523.0,0.07872156]
[1688283351345,0.212,30524.0,30523.0,0.03207675]
[1688283352338,0.231657,30524.0,30523.0,0.03207675]
[1688283353042,0.24988669,30524.0,30523.0,0.0132273]
[1688283353441,0.231657,30524.0,30523.0,0.0132273]
[1688283353742,0.24988669,30524.0,30523.0,0.0132273]
[1688283354835,0.231657,30524.0,30523.0,0.0132273]
[1688283355140,0.231657,30524.0,30523.0,0.03207675]
[1688283356440,0.231657,30524.0,30523.0,0.0132273]
[1688283359849,0.231657,30524.0,30523.0,0.3740273]
[1688283360648,0.231657,30524.0,30523.0,0.41110644]
[1688283363646,0.231657,30524.0,30523.0,0.43076444]
[1688283365553,0.231657,30524.0,30523.0,0.4962587]
[1688283365748,0.058972,30526.0,30523.0,0.7151587]
[1688283365952,0.058972,30526.0,30525.0,0.2109]
[1688283366152,0.058972,30526.0,30525.0,0.230556]
[1688283366348,0.058972,30526.0,30525.0,0.24541137]
[1688283366566,0.058972,30526.0,30525.0,0.28249051]
[1688283367357,0.058972,30526.0,30525.0,0.34786672]
[1688283373361,0.271372,30526.0,30525.0,0.34786672]
[1688283376261,0.271372,30526.0,30525.0,0.70866672]
[1688283377147,0.271372,30526.0,30525.0,0.64329051]
[1688283377552,0.271372,30526.0,30525.0,0.70869536]
[1688283379154,0.271372,30526.0,30525.0,0.64329051]
[1688283379366,0.271372,30526.0,30525.0,0.70870861]
[1688283380857,0.271372,30526.0,30525.0,0.64329051]
[1688283382666,0.271372,30526.0,30525.0,0.74154305]
[1688283383168,0.271372,30526.0,30525.0,0.64329051]
[1688283383463,0.058972,30526.0,30525.0,0.64329051]
[1688283384267,0.058972,30526.0,30525.0,1.00409051]
[1688283385173,0.058972,30526.0,30525.0,1.10234305]
[1688283386871,0.058972,30526.0,30525.0,0.38074305]
[1688283387070,0.058972,30526.0,30525.0,1.10234305]
[1688283389076,0.058972,30526.0,30525.0,0.38074305]
[1688283389267,0.058972,30526.0,30525.0,1.10234305]
[1688283390866,0.058972,30526.0,30525.0,1.00409051]
[1688283397376,0.058972,30526.0,30525.0,0.28249051]
[1688283397578,0.058972,30526.0,30525.0,0.64329051]
[1688283399280,0.058972,30526.0,30525.0,0.74154305]
[1688283399582,0.058972,30526.0,30525.0,0.38074305]
[1688283399780,0.058972,30526.0,30525.0,0.74154305]
[1688283405872,0.058972,30526.0,30525.0,0.38074305]
[1688283406176,0.058972,30526.0,30525.0,0.74154305]
[1688283408089,0.058972,30526.0,30525.0,0.38074305]
[1688283408289,0.058972,30526.0,30525.0,0.74154305]
[1688283410389,3.058972,30526.0,30525.0,0.74154305]
[1688283410790,3.17378028,30526.0,30525.0,0.74154305]
[1688283411288,3.17378028,30526.0,30525.0,0.64329051]
[1688283412486,3.17378028,30526.0,30525.0,0.62444106]
[1688283413787,3.17378028,30526.0,30525.0,0.64329051]
[1688283419986,3.17378028,30526.0,30525.0,0.28249051]
[1688283420187,3.17378028,30526.0,30525.0,0.64329051]
[1688283421092,3.17378028,30526.0,30525.0,0.64701441]
[1688283421290,3.17378028,30526.0,30525.0,0.99492784]
[1688283422589,3.17378028,30526.0,30525.0,0.77807852]
[1688283422981,3.17378028,30526.0,30525.0,0.41727852]
[1688283423185,3.17378028,30526.0,30525.0,1.13887852]
[1688283423583,3.17378028,30526.0,30525.0,0.41727852]
[1688283423786,3.17378028,30526.0,30525.0,1.13887852]
[1688283424991,3.17378028,30526.0,30525.0,0.41727852]
[1688283425197,3.17378028,30526.0,30525.0,1.13887852]
[1688283426791,3.17378028,30526.0,30525.0,1.35572759]
[1688283431489,3.11480828,30526.0,30525.0,1.35572759]
[1688283431695,3.00601726,30526.0,30525.0,1.35572759]
[1688283431992,3.00601726,30526.0,30525.0,1.22466348]
[1688283433700,3.00601726,30526.0,30525.0,0.50306348]
[1688283433895,3.00601726,30526.0,30525.0,1.22466348]
[1688283435004,3.00601726,30526.0,30525.0,1.35561397]
[1688283438208,3.02567326,30526.0,30525.0,1.35561397]
[1688283438503,3.02567326,30526.0,30525.0,1.33676452]
[1688283439504,3.02567326,30526.0,30525.0,1.35561397]
[1688283455123,3.02567326,30526.0,30525.0,0.63401397]
[1688283455319,3.02567326,30526.0,30525.0,1.35561397]
[1688283456631,3.02567326,30526.0,30525.0,0.63401397]
[1688283456829,3.02567326,30526.0,30525.0,1.35561397]
[1688283458426,3.02567326,30526.0,30525.0,0.63401397]
[1688283458626,3.02567326,30526.0,30525.0,1.35561397]
[1688283462530,3.02567326,30526.0,30525.0,0.63401397]
[1688283462835,3.02567326,30526.0,30525.0,1.35561397]
[1688283466123,3.02567326,30526.0,30525.0,0.63401397]
[1688283466318,3.02567326,30526.0,30525.0,1.35561397]
[1688283469128,3.02567326,30526.0,30525.0,0.63401397]
[1688283469323,3.02567326,30526.0,30525.0,1.35561397]
[1688283472332,3.02567326,30526.0,30525.0,0.63401397]
[1688283472533,3.02567326,30526.0,30525.0,1.35561397]
[1688283472731,3.02567326,30526.0,30525.0,0.63401397]
[1688283472930,3.02567326,30526.0,30525.0,1.35561397]
[1688283476929,3.02567326,30526.0,30525.0,1.22466348]
[1688283478233,3.02567326,30526.0,30525.0,0.50306348]
[1688283478438,3.02567326,30526.0,30525.0,1.22466348]
[1688283479942,3.00601726,30526.0,30525.0,1.22466348]
[1688283482639,3.00601726,30526.0,30525.0,1.35567588]
[1688283482939,3.00601726,30526.0,30525.0,1.22466348]
[1688283484135,3.00601726,30526.0,30525.0,1.35568233]
[1688283486745,3.00601726,30526.0,30525.0,0.63408233]
[1688283486943,3.00601726,30526.0,30525.0,1.35568233]
[1688283490145,3.00601726,30526.0,30525.0,1.22466348]
[1688283490546,3.00601726,30526.0,30525.0,0.50306348]
[1688283490851,3.00601726,30526.0,30525.0,1.22466348]
[1688283491648,3.02567326,30526.0,30525.0,1.22466348]
[1688283491852,3.02567326,30526.0,30525.0,1.22932154]
[1688283497658,3.02567326,30526.0,30525.0,1.36034183]
[1688283500155,3.02567326,30526.0,30525.0,0.63874183]
[1688283500343,3.02567326,30526.0,30525.0,1.36034183]
[1688283501457,3.02567326,30526.0,30525.0,1.22932154]
[1688283502659,3.02567326,30526.0,30525.0,1.3603407]
[1688283503958,3.02567326,30526.0,30525.0,1.36033922]
[1688283505358,3.02567326,30526.0,30525.0,1.22932154]
[1688283505560,3.02567326,30526.0,30525.0,0.50772154]
[1688283505775,3.02567326,30526.0,30525.0,1.1725864]
[1688283505952,3.02567326,30526.0,30525.0,1.30360856]
[1688283506459,3.04390295,30526.0,30525.0,0.95573733]
[1688283506849,3.02567326,30526.0,30525.0,0.95573733]
[1688283509762,3.04390295,30526.0,30525.0,0.95573733]
[1688283510069,3.25510295,30526.0,30525.0,0.74483733]
[1688283512169,3.25510295,30526.0,30525.0,0.38403733]
[1688283512754,3.25510295,30526.0,30525.0,0.48227517]
[1688283512958,3.25510295,30526.0,30525.0,0.12147517]
[1688283513159,3.25510295,30526.0,30525.0,0.48227517]
[1688283513362,3.25490295,30526.0,30525.0,0.69267517]
[1688283516782,3.25490295,30526.0,30525.0,0.61409333]
[1688283517079,3.23667326,30526.0,30525.0,0.63294278]
[1688283517689,3.23667326,30526.0,30525.0,0.61409333]
[1688283517884,3.25490295,30526.0,30525.0,0.61409333]
[1688283518788,3.23667326,30526.0,30525.0,0.61409333]
[1688283519391,3.23667326,30526.0,30525.0,0.25329333]
[1688283519593,3.23667326,30526.0,30525.0,0.61409333]
[1688283522388,3.25490295,30526.0,30525.0,0.61409333]
[1688283522589,3.23667326,30526.0,30525.0,0.61409333]
[1688283522991,3.23667326,30526.0,30525.0,0.25329333]
[1688283523290,3.23667326,30526.0,30525.0,0.61609333]
[1688283523291,3.25630295,30526.0,30525.0,0.61609333]
[1688283523488,3.23807326,30526.0,30525.0,0.61609333]
[1688283524395,3.23807326,30526.0,30525.0,0.63432302]
[1688283524598,3.23807326,30526.0,30525.0,0.61609333]
[1688283525695,3.25630295,30526.0,30525.0,0.61609333]
[1688283525886,3.23807326,30526.0,30525.0,0.61609333]
[1688283528083,3.25630295,30526.0,30525.0,0.61609333]
[1688283531598,3.23807326,30526.0,30525.0,0.61609333]
[1688283533198,3.25630295,30526.0,30525.0,0.61609333]
[1688283534891,3.25630295,30526.0,30525.0,0.25529333]
[1688283535698,3.25630295,30526.0,30525.0,0.61609333]
[1688283536899,3.25630295,30526.0,30525.0,0.25529333]
[1688283537301,3.25630295,30526.0,30525.0,0.61609333]
[1688283538096,3.23807326,30526.0,30525.0,0.61609333]
[1688283538805,3.25630295,30526.0,30525.0,0.61609333]
[1688283539509,3.23807326,30526.0,30525.0,0.61609333]
[1688283539704,3.25630295,30526.0,30525.0,0.61609333]
[1688283540313,3.23807326,30526.0,30525.0,0.61609333]
[1688283541897,3.23807326,30526.0,30525.0,0.63432302]
[1688283542409,3.23807326,30526.0,30525.0,0.61609333]
[1688283542915,3.23807326,30526.0,30525.0,0.25529333]
[1688283543210,3.23807326,30526.0,30525.0,0.61609333]
[1688283543509,3.02567326,30526.0,30525.0,0.61609333]
[1688283544199,3.02567326,30526.0,30525.0,0.25529333]
[1688283544400,3.02567326,30526.0,30525.0,0.61609333]
[1688283546312,3.02567326,30526.0,30525.0,0.60123796]
[1688283546610,3.02567326,30526.0,30525.0,0.61970941]
[1688283548615,3.02567326,30526.0,30525.0,0.75073157]
[1688283548815,3.02567326,30526.0,30525.0,0.76896126]
[1688283550111,3.02567326,30526.0,30525.0,0.98581127]
[1688283550512,3.02567326,30526.0,30525.0,1.00466072]
[1688283552818,3.02567326,30526.0,30525.0,1.34661127]
[1688283553324,3.02567326,30526.0,30525.0,1.32838158]
[1688283553510,3.02567326,30526.0,30525.0,1.34661127]
[1688283553819,3.02567326,30526.0,30525.0,1.36546072]
[1688283559219,3.02567326,30526.0,30525.0,1.32838158]
[1688283559919,3.02567326,30526.0,30525.0,0.60678158]
[1688283560120,3.02567326,30526.0,30525.0,1.32838158]
[1688283560718,3.02567326,30526.0,30525.0,0.60678158]
[1688283560924,3.02567326,30526.0,30525.0,1.32838158]
[1688283561511,3.02567326,30526.0,30525.0,1.34661127]
[1688283561715,3.02567326,30526.0,30525.0,1.36546072]
[1688283562923,3.02567326,30526.0,30525.0,0.64386072]
[1688283563124,3.02567326,30526.0,30525.0,1.36546072]
[1688283564825,3.02567326,30526.0,30525.0,0.64386072]
[1688283565023,3.02567326,30526.0,30525.0,1.36546072]
[1688283565523,3.02567326,30526.0,30525.0,0.64386072]
[1688283565723,3.02567326,30526.0,30525.0,1.36546072]
[1688283566526,3.02567326,30526.0,30525.0,1.32838158]
[1688283569016,3.02567326,30526.0,30525.0,1.34723103]
[1688283569726,3.02567326,30526.0,30525.0,1.36546072]
[1688283570119,3.02567326,30526.0,30525.0,0.64386072]
[1688283570321,3.02567326,30526.0,30525.0,1.34661127]
[1688283570522,3.02567326,30526.0,30525.0,1.32838158]
[1688283570717,3.02567326,30526.0,30525.0,1.34661127]
[1688283571023,3.02567326,30526.0,30525.0,0.62501127]
[1688283571226,3.02567326,30526.0,30525.0,1.34661127]
[1688283571724,3.02567326,30526.0,30525.0,0.62501127]
[1688283571916,3.02567326,30526.0,30525.0,1.34661127]
[1688283572117,3.02567326,30526.0,30525.0,1.32838158]
[1688283572815,3.02567326,30526.0,30525.0,1.36546072]
[1688283573519,3.02567326,30526.0,30525.0,1.32838158]
[1688283575027,3.02567326,30526.0,30525.0,1.30872558]
[1688283575427,3.02567326,30526.0,30525.0,0.58712558]
[1688283575726,3.02567326,30526.0,30525.0,1.30872558]
[1688283576426,3.02567326,30526.0,30525.0,1.32695527]
[1688283577331,3.02567326,30526.0,30525.0,1.34580472]
[1688283577520,3.02567326,30526.0,30525.0,1.32838158]
[1688283580329,3.02567326,30526.0,30525.0,0.60678158]
[1688283580827,3.02567326,30526.0,30525.0,1.32838158]
[1688283584732,3.02567326,30526.0,30525.0,1.34661127]
[1688283587738,3.02567326,30526.0,30525.0,1.12976126]
[1688283588132,3.02567326,30526.0,30525.0,1.11153157]
[1688283590227,3.02567326,30526.0,30525.0,1.12976126]
[1688283590428,3.02567326,30526.0,30525.0,1.34661014]
[1688283590935,3.02567326,30526.0,30525.0,1.36545959]
[1688283591729,3.02567326,30526.0,30525.0,0.64385959]
[1688283591929,3.02567326,30526.0,30525.0,1.36545959]
[1688283594444,3.02567326,30526.0,30525.0,1.32838045]
[1688283594740,3.02567326,30526.0,30525.0,1.34661014]
[1688283595138,3.04390295,30526.0,30525.0,1.34661014]
[1688283595343,3.04390295,30526.0,30525.0,1.32838045]
[1688283595543,3.02567326,30526.0,30525.0,1.32838045]
[1688283595930,3.02567326,30526.0,30525.0,1.36545959]
[1688283596742,3.02567326,30526.0,30525.0,1.3472299]
[1688283597043,3.02567326,30526.0,30525.0,1.36545959]
[1688283597442,3.02567326,30526.0,30525.0,1.3472299]
[1688283597936,3.02567326,30526.0,30525.0,1.32838045]
[1688283598540,3.02567326,30526.0,30525.0,1.34661014]
[1688283599046,3.02567326,30526.0,30525.0,1.36545959]
[1688283599236,3.02567326,30526.0,30525.0,1.32838045]
[1688283599939,3.02567326,30526.0,30525.0,0.60678045]
[1688283600141,3.02567326,30526.0,30525.0,1.32838045]
[1688283600939,3.02567326,30526.0,30525.0,1.34661014]
[1688283601139,3.02567326,30526.0,30525.0,1.32838045]
[1688283602545,3.02567326,30526.0,30525.0,1.36545959]
[1688283603236,3.02567326,30526.0,30525.0,1.3472299]
[1688283604647,3.02567326,30526.0,30525.0,1.36545959]
[1688283605946,3.02567326,30526.0,30525.0,1.3472299]
[1688283607047,3.02567326,30526.0,30525.0,1.36545959]
[1688283607747,3.02567326,30526.0,30525.0,1.3472299]
[1688283608048,3.02567326,30526.0,30525.0,1.36545959]
[1688283608350,3.04390295,30526.0,30525.0,1.32838045]
[1688283608848,3.02567326,30526.0,30525.0,1.32838045]
[1688283610842,3.02567326,30526.0,30525.0,0.60678045]
[1688283611242,3.02567326,30526.0,30525.0,1.32838045]
[1688283614655,3.02567326,30526.0,30525.0,0.60678045]
[1688283614853,3.02567326,30526.0,30525.0,1.32838045]
[1688283619770,3.02567326,30526.0,30525.0,1.34661014]
[1688283619958,3.02567326,30526.0,30525.0,1.32838045]
[1688283621165,3.02567326,30526.0,30525.0,1.23443743]
[1688283625269,3.02567326,30526.0,30525.0,1.21558798]
[1688283625462,3.02567326,30526.0,30525.0,1.23443743]
[1688283625864,3.00601726,30526.0,30525.0,1.23443743]
[1688283626969,3.00601726,30526.0,30525.0,1.21558798]
[1688283628277,3.00601726,30526.0,30525.0,1.19735829]
[1688283628462,3.00601726,30526.0,30525.0,1.34657796]
[1688283628668,3.00601726,30526.0,30525.0,1.36542741]
[1688283629174,3.00601726,30526.0,30525.0,1.23443743]
[1688283629677,3.00601726,30526.0,30525.0,1.36542479]
[1688283630075,3.00601726,30526.0,30525.0,1.34657538]
[1688283630373,3.00601726,30526.0,30525.0,1.3465754]
[1688283630768,3.00601726,30526.0,30525.0,0.6249754]
[1688283630970,3.00601726,30526.0,30525.0,1.3465754]
[1688283632877,3.00601726,30526.0,30525.0,1.19735829]
[1688283634072,3.00601726,30526.0,30525.0,0.47575829]
[1688283634272,3.00601726,30526.0,30525.0,1.19735829]
[1688283634574,3.02567326,30526.0,30525.0,1.19735829]
[1688283634774,3.02567326,30526.0,30525.0,0.47575829]
[1688283634979,3.02567326,30526.0,30525.0,1.19735829]
[1688283637482,3.02567326,30526.0,30525.0,0.47575829]
[1688283637682,3.02567326,30526.0,30525.0,1.19735829]
[1688283638486,3.02567326,30526.0,30525.0,1.21558798]
[1688283638669,3.02567326,30526.0,30525.0,1.19735829]
[1688283639684,3.02567326,30526.0,30525.0,1.21558798]
[1688283640381,3.02567326,30526.0,30525.0,1.3465714]
[1688283640685,3.02567326,30526.0,30525.0,1.32834171]
[1688283641187,3.02567326,30526.0,30525.0,1.23443743]
[1688283641881,3.02567326,30526.0,30525.0,1.36541812]
[1688283642987,3.02567326,30526.0,30525.0,1.23443743]
[1688283643188,3.02567326,30526.0,30525.0,0.51283743]
[1688283643381,3.02567326,30526.0,30525.0,1.34656865]
[1688283643691,3.02567326,30526.0,30525.0,1.3654181]
[1688283643881,3.02567326,30526.0,30525.0,0.6438181]
[1688283644092,3.02567326,30526.0,30525.0,1.3654181]
[1688283644885,3.02567326,30526.0,30525.0,0.6438181]
[1688283645390,3.02567326,30526.0,30525.0,1.3654181]
[1688283645586,3.02567326,30526.0,30525.0,1.34718841]
[1688283645989,3.02567326,30526.0,30525.0,0.6438181]
[1688283646192,3.02567326,30526.0,30525.0,1.3654181]
[1688283647081,3.00601726,30526.0,30525.0,1.3654181]
[1688283647492,3.00601726,30526.0,30525.0,1.23443743]
[1688283647687,3.00601726,30526.0,30525.0,1.39835854]
[1688283647984,2.95685081,30526.0,30525.0,1.39835854]
[1688283649692,2.95685081,30526.0,30525.0,0.68348757]
[1688283649876,2.95685081,30526.0,30525.0,1.40508757]
[1688283653585,2.95685081,30526.0,30525.0,0.68348757]
[1688283653791,2.95685081,30526.0,30525.0,1.40508757]
[1688283654380,2.95619539,30526.0,30525.0,1.40508757]
[1688283661698,2.95619539,30526.0,30525.0,0.68348757]
[1688283661890,2.95619539,30526.0,30525.0,1.40508757]
[1688283662796,2.95619539,30526.0,30525.0,1.24116646]
[1688283664796,2.95619539,30526.0,30525.0,0.51956646]
[1688283664994,2.95619539,30526.0,30525.0,1.24116646]
[1688283667305,2.95619539,30526.0,30525.0,0.51956646]
[1688283667600,2.95619539,30526.0,30525.0,1.24116646]
[1688283669805,2.95619539,30526.0,30525.0,0.51956646]
[1688283670105,2.95619539,30526.0,30525.0,1.24116646]
[1688283670704,2.95619539,30526.0,30525.0,2.24116646]
[1688283671004,2.95619539,30526.0,30525.0,1.51956646]
[1688283671190,2.95619539,30526.0,30525.0,2.24116646]
[1688283673594,2.95619539,30526.0,30525.0,2.40508757]
[1688283678008,2.95619539,30526.0,30525.0,2.24116646]
[1688283678509,2.95619539,30526.0,30525.0,2.22231701]
[1688283679390,2.95619539,30526.0,30525.0,2.35314415]
[1688283681301,2.95619539,30526.0,30525.0,2.3719936]
[1688283682013,2.95619539,30526.0,30525.0,1.6503936]
[1688283682210,2.95619539,30526.0,30525.0,2.3719936]
[1688283686001,2.97585139,30526.0,30525.0,2.35314415]
[1688283687419,2.97585139,30526.0,30525.0,2.3719936]
[1688283687711,2.97585139,30526.0,30525.0,1.6503936]
[1688283687913,2.97585139,30526.0,30525.0,2.3719936]
[1688283691210,2.97585139,30526.0,30525.0,2.24116646]
[1688283691211,2.95619539,30526.0,30525.0,2.24116646]
[1688283692195,2.95619539,30526.0,30525.0,1.88036646]
[1688283692400,2.95619539,30526.0,30525.0,2.24116646]
[1688283693312,2.95619539,30526.0,30525.0,2.22231701]
[1688283695807,2.95619539,30526.0,30525.0,2.24116646]
[1688283698221,2.95619539,30526.0,30525.0,2.22231701]
[1688283698822,2.95619539,30526.0,30525.0,2.24116646]
[1688283700409,2.94809109,30526.0,30525.0,2.24116646]
[1688283705123,2.94809109,30526.0,30525.0,2.23996641]
[1688283706124,2.94809109,30526.0,30525.0,1.51836641]
[1688283706418,2.94809109,30526.0,30525.0,2.23996641]
[1688283706620,2.94809109,30526.0,30525.0,3.23996641]
[1688283707623,2.94809109,30526.0,30525.0,2.51836641]
[1688283707827,2.94487379,30526.0,30525.0,3.23996641]
[1688283711130,2.94487379,30526.0,30525.0,2.51836641]
[1688283711429,2.94487379,30526.0,30525.0,3.23996641]
[1688283718040,2.94487379,30526.0,30525.0,2.51836641]
[1688283718337,2.94487379,30526.0,30525.0,3.23996641]
[1688283720243,2.94487379,30526.0,30525.0,3.22111696]
[1688283720445,2.94487379,30526.0,30525.0,3.2266721]
[1688283720937,2.96452979,30526.0,30525.0,3.2266721]
[1688283722231,2.94487379,30526.0,30525.0,3.24552155]
[1688283724841,2.94487379,30526.0,30525.0,2.52392155]
[1688283725043,2.94487379,30526.0,30525.0,3.24552155]
[1688283726740,2.94487379,30526.0,30525.0,3.40944266]
[1688283730346,2.94487379,30526.0,30525.0,3.24552155]
[1688283733445,2.94487379,30526.0,30525.0,3.40944266]
[1688283734351,2.94487379,30526.0,30525.0,3.24552155]
[1688283734655,2.94487379,30526.0,30525.0,3.40944266]
[1688283740555,2.94487379,30526.0,30525.0,3.37236352]
[1688283740755,2.94487379,30526.0,30525.0,3.39059321]
[1688283741859,2.94487379,30526.0,30525.0,3.40944266]
[1688283743258,2.96452979,30526.0,30525.0,3.40944266]
[1688283743562,2.96452979,30526.0,30525.0,3.24552155]
[1688283745564,2.94487379,30526.0,30525.0,3.40944266]
[1688283761879,2.94487379,30526.0,30525.0,2.68784266]
[1688283762078,2.94487379,30526.0,30525.0,3.40944266]
[1688283764392,2.94487379,30526.0,30525.0,3.395436]
[1688283766793,2.91944693,30526.0,30525.0,3.395436]
[1688283767391,2.89432667,30526.0,30525.0,3.395436]
[1688283767692,2.86751118,30526.0,30525.0,3.395436]
[1688283768688,2.85164064,30526.0,30525.0,3.395436]
[1688283769197,2.82519992,30526.0,30525.0,3.395436]
[1688283769996,2.7998984,30526.0,30525.0,3.395436]
[1688283770595,2.75690867,30526.0,30525.0,3.395436]
[1688283770986,2.75215106,30526.0,30525.0,3.395436]
[1688283772590,2.73330866,30526.0,30525.0,3.395436]
[1688283773295,2.70818545,30526.0,30525.0,3.395436]
[1688283776296,2.70818545,30526.0,30525.0,2.673836]
[1688283776497,3.02568545,30526.0,30525.0,3.395436]
[1688283780500,3.0052289,30526.0,30525.0,3.395436]
[1688283781099,3.0052289,30526.0,30525.0,3.37230649]
[1688283781398,3.0052289,30526.0,30525.0,3.39664404]
[1688283783494,2.54998342,30526.0,30525.0,3.39664404]
[1688283784899,2.54691497,30526.0,30525.0,3.39664404]
[1688283785500,2.54691497,30526.0,30525.0,2.67504404]
[1688283785889,2.54691497,30526.0,30525.0,3.39664404]
[1688283787500,2.53112181,30526.0,30525.0,3.39664404]
[1688283787902,2.52246796,30526.0,30525.0,3.39664404]
[1688283788605,2.51650855,30526.0,30525.0,3.39664404]
[1688283790798,2.53616455,30526.0,30525.0,0.13090371]
[1688283791000,2.53616455,30526.0,30523.0,0.02599002]
[1688283791001,2.74736455,30526.0,30523.0,0.49172099]
[1688283791204,0.019658,30523.0,30522.0,0.13092099]
[1688283791400,0.230758,30523.0,30521.0,0.13141239]
[1688283791606,0.230658,30522.0,30521.0,0.13141239]
[1688283791802,0.24888769,30522.0,30521.0,0.13141239]
[1688283792008,0.232058,30522.0,30521.0,0.34381239]
[1688283792306,0.25028769,30522.0,30521.0,0.34381239]
[1688283792499,0.049145,30524.0,30521.0,0.34381239]
[1688283792500,0.058975,30524.0,30521.0,0.2128914]
[1688283792705,0.058975,30524.0,30523.0,0.06541413]
[1688283792904,0.271375,30524.0,30523.0,0.06541413]
[1688283794399,0.271375,30524.0,30522.0,0.06541413]
[1688283794599,0.230658,30523.0,30522.0,0.06541413]
[1688283794801,0.230658,30523.0,30522.0,0.06538808]
[1688283795102,0.230658,30523.0,30521.0,0.3095126]
[1688283795308,0.540758,30523.0,30521.0,0.32774229]
[1688283795514,0.540758,30523.0,30521.0,0.3095126]
[1688283795807,0.540758,30523.0,30521.0,0.6703126]
[1688283796107,0.540758,30523.0,30521.0,0.68854229]
[1688283796410,0.540758,30523.0,30522.0,0.06537169]
[1688283796995,0.019658,30523.0,30522.0,0.34760034]
[1688283797199,0.019658,30523.0,30522.0,0.67255834]
[1688283797405,0.11480828,30525.0,30524.0,1.0]
[1688283797611,0.11480828,30525.0,30524.0,1.72796872]
[1688283798610,0.11480828,30525.0,30524.0,1.74236786]
[1688283798809,0.13446428,30525.0,30524.0,1.74236786]
[1688283803014,0.13446428,30525.0,30524.0,1.38156786]
[1688283803213,0.13446428,30525.0,30524.0,2.10316786]
[1688283804715,0.11480828,30525.0,30524.0,2.10315858]
[1688283805119,0.11123311,30525.0,30524.0,2.00513528]
[1688283806309,0.09123311,30525.0,30524.0,2.00513528]
[1688283807813,0.09123311,30525.0,30524.0,2.03151914]
[1688283813128,0.32011839,30526.0,30525.0,1.13761178]
[1688283813334,1.7504914,30528.0,30527.0,0.05]
[1688283813520,1.7504914,30528.0,30527.0,0.98349489]
[1688283813816,1.42290229,30528.0,30527.0,1.28336533]
[1688283815023,1.42290229,30528.0,30527.0,1.22896982]
[1688283815727,1.42290229,30528.0,30527.0,1.28336533]
[1688283816428,1.42290229,30528.0,30527.0,1.06653263]
[1688283818133,1.42290229,30528.0,30527.0,0.70573263]
[1688283818323,1.42290229,30528.0,30527.0,1.29669274]
[1688283818926,1.42290229,30528.0,30527.0,0.57509274]
[1688283819118,1.42290229,30528.0,30527.0,1.29669274]
[1688283819721,1.09533416,30528.0,30527.0,1.29669274]
[1688283819916,1.09533416,30528.0,30527.0,1.64414668]
[1688283820115,0.76776603,30528.0,30527.0,1.64414668]
[1688283820320,0.76776603,30528.0,30527.0,0.92254668]
[1688283820530,0.4401979,30528.0,30527.0,1.64414668]
[1688283820730,0.4401979,30528.0,30527.0,1.42733263]
[1688283821133,0.11262977,30528.0,30527.0,1.42733263]
[1688283821524,0.27464049,30535.0,30533.0,1.0]
[1688283821830,0.32376749,30535.0,30534.0,0.23205]
[1688283822025,0.32376749,30535.0,30534.0,0.24243925]
[1688283822232,0.07587919,30535.0,30534.0,0.24243925]
[1688283823223,0.07587919,30535.0,30534.0,0.2612887]
[1688283826438,0.049127,30535.0,30534.0,0.2612887]
[1688283828142,0.33120529,30536.0,30534.0,0.2416387]
[1688283828336,0.33120529,30536.0,30535.0,0.2122]
[1688283828726,0.33120529,30536.0,30535.0,0.22307765]
[1688283829340,0.34943498,30536.0,30535.0,0.22307765]
[1688283831842,0.33120529,30536.0,30535.0,0.22307765]
[1688283833429,0.54360529,30536.0,30535.0,0.22307765]
[1688283834343,0.56183498,30536.0,30535.0,0.22307765]
[1688283837046,0.54360529,30536.0,30535.0,0.22307765]
[1688283839240,0.56183498,30536.0,30535.0,0.22307765]
[1688283839551,0.54360529,30536.0,30535.0,0.22307765]
[1688283840745,0.56183498,30536.0,30535.0,0.22307765]
[1688283841741,0.54360529,30536.0,30535.0,0.22307765]
[1688283842048,0.56183498,30536.0,30535.0,0.22307765]
[1688283843052,0.54360529,30536.0,30535.0,0.22327765]
[1688283843548,0.54360529,30536.0,30535.0,0.22127765]
[1688283848544,0.56183498,30536.0,30535.0,0.22127765]
[1688283849456,0.54360529,30536.0,30535.0,0.22127765]
[1688283850045,0.56183498,30536.0,30535.0,0.22127765]
[1688283850449,0.56183498,30536.0,30535.0,0.29452261]
[1688283850450,0.54360529,30536.0,30535.0,0.29452261]
[1688283850646,0.54360529,30536.0,30535.0,0.2401271]
[1688283850846,0.54360529,30536.0,30535.0,0.22127765]
[1688283853460,0.54230529,30536.0,30535.0,0.22327765]
[1688283854264,0.70619235,30536.0,30535.0,0.22327765]
[1688283855753,0.70619235,30536.0,30535.0,0.2421271]